bitfinex/quotes_SOLUSD_20250704
["timestamp","ask_amount","ask_price","bid_price","bid_amount"]
[1751650712170,6.91118395,146.72,146.68,6.91118395]
[1751650713252,97.08,146.75,146.68,6.91118395]
[1751650713455,6.91118395,146.73,146.69,6.91118395]
[1751650714349,6.91118395,146.72,146.68,6.91118395]
[1751650716282,6.91118395,146.73,146.68,6.91118395]
[1751650716450,6.91118395,146.73,146.69,6.81709727]
[1751650717051,6.91118395,146.73,146.69,30.77102441]
[1751650717257,6.91118395,146.74,146.69,30.77102441]
[1751650718076,6.91118395,146.74,146.7,6.91118395]
[1751650718786,97.08,146.75,146.7,6.91118395]
[1751650718956,6.91118395,146.74,146.7,6.91118395]
[1751650719473,6.91118395,146.73,146.69,6.91118395]
[1751650720279,97.08,146.75,146.69,6.91118395]
[1751650720479,6.91118395,146.73,146.69,6.91118395]
[1751650720680,97.08,146.75,146.68,6.91118395]
[1751650720681,6.91118395,146.72,146.68,6.91118395]
[1751650720876,6.91118395,146.72,146.66,23.86472111]
[1751650721057,6.91118395,146.72,146.67,6.91118395]
[1751650721261,6.91118395,146.72,146.66,23.86472111]
[1751650721460,6.91118395,146.72,146.68,6.91118395]
[1751650721976,6.91118395,146.72,146.69,6.81709727]
[1751650724358,11.94929354,146.72,146.69,6.81709727]
[1751650724572,5.03810959,146.74,146.69,6.81709727]
[1751650724772,6.91118395,146.72,146.69,6.81709727]
[1751650724981,11.94929354,146.72,146.69,6.81709727]
[1751650725276,6.91118395,146.72,146.69,6.81709727]
[1751650725757,11.94929354,146.72,146.69,6.81709727]
[1751650725955,6.91118395,146.72,146.69,6.81709727]
[1751650729191,6.91118395,146.72,146.69,6.81709727]
[1751650730593,5.0838429,146.71,146.69,6.81709727]
[1751650731089,6.91118395,146.72,146.69,6.81709727]
[1751650731264,97.08,146.75,146.69,6.81709727]
[1751650731462,6.91118395,146.72,146.69,6.81709727]
[1751650731667,6.91118395,146.73,146.69,13.72828122]
[1751650732562,6.91118395,146.7,146.66,6.81849174]
[1751650732766,89.8,146.73,146.66,23.86472111]
[1751650732969,6.91118395,146.71,146.67,6.91118395]
[1751650733783,89.8,146.73,146.68,23.86146712]
[1751650733965,6.91118395,146.74,146.68,23.86146712]
[1751650734168,6.91118395,146.73,146.69,6.91118395]
[1751650734779,6.91118395,146.7,146.66,6.81849174]
[1751650734977,6.91118395,146.69,146.66,6.81849174]
[1751650735184,6.91118395,146.7,146.66,23.86472111]
[1751650736480,6.91118395,146.69,146.66,6.81849174]
[1751650737390,6.91118395,146.68,146.66,6.81849174]
[1751650737685,6.91118395,146.69,146.65,13.73002363]
[1751650737866,6.91118395,146.72,146.68,6.91118395]
[1751650738067,6.91118395,146.73,146.69,6.91118395]
[1751650738580,6.91118395,146.72,146.68,6.91118395]
[1751650740595,6.91118395,146.71,146.67,6.91118395]
[1751650740795,6.91118395,146.7,146.66,30.77590506]
[1751650740968,18.64964886,146.73,146.66,6.81849174]
[1751650741172,6.91118395,146.68,146.66,6.81849174]
[1751650741890,6.91118395,146.68,146.65,6.81873562]
[1751650742087,6.91118395,146.67,146.65,6.81873562]
[1751650742393,6.91118395,146.66,146.65,6.81873562]
[1751650742699,6.91118395,146.66,146.63,0.2]
[1751650742888,6.91118395,146.64,146.63,0.2]
[1751650743283,6.91118395,146.65,146.63,7.01988678]
[1751650743791,6.91118395,146.65,146.63,0.2]
[1751650744487,6.91118395,146.64,146.63,0.2]
[1751650744994,6.91118395,146.67,146.63,13.93107073]
[1751650745177,6.91118395,146.68,146.63,13.93107073]
[1751650745496,6.91118395,146.7,146.65,6.91118395]
[1751650746268,32.91118395,146.69,146.65,6.91118395]
[1751650746692,26.0,146.69,146.65,6.91118395]
[1751650746895,26.0,146.69,146.63,24.06960375]
[1751650747194,32.91118395,146.69,146.65,6.91118395]
[1751650748004,32.91118395,146.69,146.63,24.06960375]
[1751650748177,32.91118395,146.69,146.64,6.91118395]
[1751650748578,32.91118395,146.69,146.65,6.91118395]
[1751650748995,96.615347,146.73,146.66,6.81849174]
[1751650749179,6.91118395,146.72,146.68,6.91118395]
[1751650752004,6.91118395,146.71,146.67,6.91118395]
[1751650752897,6.91118395,146.7,146.66,30.77590506]
[1751650755694,6.91118395,146.71,146.68,6.81756203]
[1751650756499,6.91118395,146.72,146.68,13.72874598]
[1751650756819,89.8,146.73,146.68,13.72874598]
[1751650756988,6.91118395,146.72,146.68,13.72874598]
[1751650760731,6.91118395,146.71,146.65,1.6134]
[1751650761008,6.91118395,146.71,146.67,6.91118395]
[1751650761212,6.91118395,146.7,146.66,13.72967569]
[1751650761922,6.91118395,146.67,146.64,6.81942171]
[1751650762302,6.91118395,146.66,146.64,6.81942171]
[1751650762613,6.91118395,146.65,146.63,0.2]
[1751650762932,115.8,146.71,146.64,6.91118395]
[1751650763089,1.5095,146.74,146.67,6.91118395]
[1751650763418,6.91118395,146.71,146.67,6.91118395]
[1751650763805,6.91118395,146.7,146.63,68.71907265]
[1751650764114,6.91118395,146.7,146.66,6.91118395]
[1751650764610,6.91118395,146.7,146.63,50.06942379]
[1751650765011,6.91118395,146.7,146.66,6.91118395]
[1751650765314,6.91118395,146.7,146.67,6.81802686]
[1751650769926,6.91118395,146.7,146.66,6.81849174]
[1751650770712,5.09891332,146.71,146.66,6.81849174]
[1751650771012,6.91118395,146.7,146.66,13.72967569]
[1751650772323,6.91118395,146.7,146.66,6.81849174]
[1751650772502,6.91118395,146.7,146.66,13.72967569]
[1751650773620,6.91118395,146.71,146.67,6.91118395]
[1751650774029,6.91118395,146.71,146.66,30.77590506]
[1751650774416,6.91118395,146.7,146.66,30.77590506]
[1751650775127,5.09891332,146.72,146.67,6.91118395]
[1751650775431,5.09891332,146.72,146.66,30.77590506]
[1751650775432,6.91118395,146.71,146.66,30.77590506]
[1751650775814,6.91118395,146.7,146.66,30.77590506]
[1751650776403,6.91118395,146.7,146.65,6.91118395]
[1751650776605,6.91118395,146.69,146.65,6.91118395]
[1751650776918,6.91118395,146.7,146.65,6.91118395]
[1751650777901,6.91118395,146.66,146.64,6.81942171]
[1751650778514,5.09988308,146.69,146.64,6.81942171]
[1751650778714,12.01106703,146.7,146.65,6.91118395]
[1751650780326,5.09988308,146.7,146.66,13.72967569]
[1751650780635,12.0121921,146.7,146.66,13.72967569]
[1751650780812,6.91118395,146.7,146.66,13.72967569]
[1751650782032,6.37364165,146.75,146.67,18.64964886]
[1751650782333,6.91118395,146.72,146.68,6.91118395]
[1751650782534,6.91118395,146.71,146.66,56.77590506]
[1751650782720,6.91118395,146.7,146.66,49.86472111]
[1751650782921,6.91118395,146.71,146.66,56.77590506]
[1751650784231,6.91118395,146.71,146.66,49.86472111]
[1751650784547,5.1008992,146.73,146.66,49.86472111]
[1751650784548,6.91118395,146.7,146.66,56.77590506]
[1751650784720,6.91118395,146.7,146.66,23.86472111]
[1751650785038,6.91118395,146.69,146.66,6.81849174]
[1751650785820,6.91118395,146.69,146.65,6.81895669]
[1751650786025,5.10019352,146.71,146.65,6.81895669]
[1751650786320,6.91118395,146.69,146.65,6.81895669]
[1751650786520,6.91118395,146.69,146.65,13.73014064]
[1751650787231,6.91118395,146.69,146.65,6.81895669]
[1751650787551,6.91118395,146.67,146.65,6.81895669]
[1751650787723,6.91118395,146.68,146.65,6.81895669]
[1751650789341,96.71118395,146.7,146.66,6.91118395]
[1751650790241,89.8,146.7,146.67,6.91118395]
[1751650791753,89.8,146.7,146.68,6.81756203]
[1751650792222,6.91118395,146.72,146.68,13.72874598]
[1751650792427,6.91118395,146.73,146.69,6.91118395]
[1751650792648,12.01671793,146.72,146.68,13.72874598]
[1751650792833,6.91118395,146.72,146.68,13.72874598]
[1751650795252,6.91118395,146.72,146.68,6.81756203]
[1751650795437,6.91118395,146.71,146.68,6.81756203]
[1751650799252,124.25962343,146.74,146.68,6.81756203]
[1751650799556,6.91118395,146.72,146.68,6.81756203]
[1751650802328,5.10520614,146.71,146.68,6.81756203]
[1751650802529,6.91118395,146.72,146.68,6.81756203]
[1751650803428,124.25962343,146.74,146.68,6.81756203]
[1751650803429,6.91118395,146.71,146.68,6.81756203]
[1751650803654,6.91118395,146.7,146.68,6.81756203]
[1751650804159,6.91118395,146.69,146.67,6.81790459]
[1751650804332,5.10573211,146.71,146.67,6.81790459]
[1751650804526,6.91118395,146.71,146.67,13.72908854]
[1751650805355,34.01994191,146.74,146.67,13.72908854]
[1751650805356,0.1,146.76,146.72,1.5463]
[1751650805571,0.1,146.76,146.75,6.91118395]
[1751650807448,0.1,146.76,146.75,13.725494]
[1751650808158,0.1,146.76,146.75,6.81431005]
[1751650808554,0.1,146.76,146.75,13.725494]
[1751650808945,0.1,146.76,146.75,6.91118395]
[1751650809460,7.01118395,146.76,146.73,23.8532289]
[1751650809638,12.11556986,146.76,146.73,23.8532289]
[1751650809964,7.01118395,146.76,146.73,23.8532289]
[1751650811463,6.91118395,146.75,146.73,23.8532289]
[1751650811950,6.91118395,146.75,146.72,6.81570338]
[1751650812153,7.01118395,146.76,146.72,6.81570338]
[1751650812558,7.01118395,146.76,146.72,13.72688733]
[1751650814464,6.91118395,146.74,146.69,23.85984046]
[1751650814774,6.91118395,146.72,146.69,6.81709727]
[1751650814938,6.91118395,146.7,146.69,6.81709727]
[1751650815764,6.91118395,146.71,146.69,6.81709727]
[1751650815959,6.91118395,146.71,146.68,6.81756203]
[1751650817364,6.91118395,146.7,146.68,6.81756203]
[1751650817671,5.09521877,146.73,146.68,6.81756203]
[1751650817672,6.91118395,146.71,146.68,6.81756203]
[1751650818264,6.91118395,146.71,146.67,6.91118395]
[1751650818767,6.91118395,146.71,146.66,6.91118395]
[1751650820485,6.91118395,146.71,146.67,13.72921081]
[1751650822380,6.91118395,146.7,146.65,6.81895669]
[1751650822584,6.91118395,146.7,146.65,13.73014064]
[1751650822766,6.91118395,146.7,146.66,6.91118395]
[1751650825173,96.71118395,146.72,146.69,6.81709727]
[1751650828551,6.91118395,146.71,146.68,6.81742942]
[1751650828753,96.61588136,146.72,146.67,6.81784008]
[1751650828960,6.91118395,146.7,146.67,6.81784008]
[1751650829374,6.91118395,146.71,146.67,13.72902403]
[1751650830369,6.91118395,146.7,146.67,6.81784008]
[1751650830981,96.61580749,146.72,146.67,6.81784008]
[1751650831180,6.91118395,146.7,146.67,6.81784008]
[1751650831978,6.91118395,146.7,146.64,23.8679244]
[1751650832175,6.91118395,146.7,146.66,6.91118395]
[1751650833256,6.91118395,146.7,146.67,6.81802686]
[1751650835676,6.91118395,146.7,146.67,6.81802686]
[1751650836078,6.91118395,146.7,146.67,13.72921081]
[1751650837172,12.01261991,146.71,146.67,13.72921081]
[1751650840789,12.01261991,146.71,146.64,23.8679244]
[1751650841170,6.91118395,146.7,146.64,23.8679244]
[1751650841366,6.91118395,146.71,146.67,6.91118395]
[1751650842502,6.91118395,146.71,146.67,13.72893132]
[1751650843291,12.01104229,146.71,146.67,13.72893132]
[1751650844580,18.82727144,146.71,146.67,13.72893132]
[1751650844781,6.91118395,146.71,146.67,13.72893132]
[1751650844984,12.01064792,146.71,146.67,13.72893132]
[1751650845284,18.82681733,146.71,146.67,13.72893132]
[1751650845496,13.72735336,146.71,146.67,13.72893132]
[1751650847791,6.91118395,146.68,146.64,6.81942171]
[1751650847978,6.91118395,146.68,146.64,13.73060566]
[1751650848297,12.01090578,146.69,146.64,13.73060566]
[1751650848599,5.09972183,146.68,146.65,6.91118395]
[1751650848800,5.09972183,146.68,146.64,6.81942171]
[1751650849000,5.09972183,146.68,146.65,6.91118395]
[1751650849198,12.01090578,146.69,146.65,6.91118395]
[1751650849794,12.01090578,146.69,146.64,6.81942171]
[1751650850001,12.01090578,146.69,146.65,6.91118395]
[1751650850404,0.1,146.76,146.69,28.3911]
[1751650850587,0.5763633,146.81,146.76,38.20693174]
[1751650850777,0.5763633,146.81,146.73,26.45074886]
[1751650850978,0.5763633,146.81,146.76,6.91118395]
[1751650851184,6.91118395,146.8,146.69,6.2902]
[1751650851413,6.91118395,146.79,146.73,6.91118395]
[1751650851700,23.90354329,146.78,146.77,6.91118395]
[1751650851900,0.5763633,146.81,146.78,6.81291729]
[1751650852082,0.5763633,146.81,146.78,13.72410124]
[1751650852277,0.5763633,146.81,146.79,6.91118395]
[1751650852478,26.5763633,146.81,146.8,6.91118395]
[1751650852686,26.5763633,146.81,146.79,6.91118395]
[1751650853114,0.5763633,146.81,146.8,6.91118395]
[1751650854015,0.5763633,146.81,146.8,13.72317305]
[1751650854177,1.6239,146.92,146.8,23.84196185]
[1751650854376,6.91118395,146.85,146.8,6.8119891]
[1751650854706,6.91118395,146.81,146.78,6.81291729]
[1751650854910,6.91118395,146.8,146.78,6.81291729]
[1751650855293,6.91118395,146.8,146.74,17.03612036]
[1751650855604,6.91118395,146.79,146.74,17.03612036]
[1751650855779,6.91118395,146.77,146.74,17.03612036]
[1751650855981,6.91118395,146.78,146.74,30.76207874]
[1751650856708,6.91118395,146.79,146.75,6.91118395]
[1751650856912,6.91118395,146.8,146.75,6.91118395]
[1751650857212,26.0,146.81,146.75,6.91118395]
[1751650857213,6.91118395,146.79,146.75,6.91118395]
[1751650859106,6.91118395,146.77,146.74,17.03612036]
[1751650859811,6.91118395,146.78,146.74,17.03612036]
[1751650860203,6.91118395,146.78,146.74,23.85089479]
[1751650860896,6.91118395,146.77,146.74,23.85089479]
[1751650862302,6.91118395,146.77,146.74,17.03612036]
[1751650864014,18.64964886,146.8,146.74,17.03612036]
[1751650864201,6.91118395,146.78,146.74,23.94730431]
[1751650864894,6.91118395,146.77,146.74,23.85089479]
[1751650865098,6.91118395,146.76,146.74,6.81477443]
[1751650866007,6.91118395,146.77,146.74,6.81477443]
[1751650867005,6.91118395,146.77,146.72,6.91118395]
[1751650868920,6.91118395,146.77,146.73,6.91118395]
[1751650869093,18.64964886,146.8,146.71,23.85571911]
[1751650869094,6.91118395,146.76,146.71,23.85571911]
[1751650869298,6.91118395,146.76,146.72,6.91118395]
[1751650870524,6.91118395,146.76,146.73,6.81523887]
[1751650871621,6.91118395,146.77,146.73,13.72642282]
[1751650872207,6.91118395,146.77,146.74,6.91118395]
[1751650872208,26.0,146.77,146.74,6.91118395]
[1751650872410,26.0,146.77,146.75,13.725494]
[1751650873024,18.64964886,146.8,146.75,30.76126912]
[1751650873229,26.0,146.79,146.76,6.91118395]
[1751650873928,32.91118395,146.79,146.75,30.76126912]
[1751650874112,26.0,146.79,146.76,6.91118395]
[1751650874313,26.0,146.79,146.77,6.81338148]
[1751650875303,108.44964886,146.82,146.77,6.81338148]
[1751650875604,26.0,146.81,146.78,6.91118395]
[1751650876106,6.91118395,146.83,146.79,6.91118395]
[1751650876308,26.0,146.82,146.8,6.8119891]
[1751650876514,26.0,146.81,146.8,6.8119891]
[1751650877521,25.56083281,146.84,146.8,13.72317305]
[1751650877730,26.0,146.83,146.8,13.72317305]
[1751650878134,8.12,146.85,146.8,13.72317305]
[1751650878135,8.12,146.85,146.82,6.91118395]
[1751650878328,6.91118395,146.86,146.82,6.91118395]
[1751650878511,6.91118395,146.86,146.83,6.81059728]
[1751650879028,26.0,146.84,146.83,6.81059728]
[1751650880439,32.91118395,146.84,146.78,17.03224365]
[1751650880739,6.91118395,146.81,146.77,13.72456543]
[1751650881040,26.0,146.84,146.8,6.91118395]
[1751650881344,32.91118395,146.84,146.8,6.91118395]
[1751650882122,32.91118395,146.84,146.8,13.72279213]
[1751650883831,6.91118395,146.83,146.79,6.91118395]
[1751650884916,6.91118395,146.83,146.77,6.81338148]
[1751650884917,6.91118395,146.81,146.77,6.81338148]
[1751650885124,6.91118395,146.81,146.77,13.72456543]
[1751650886625,25.46025472,146.83,146.77,13.72456543]
[1751650886945,6.91118395,146.82,146.78,6.91118395]
[1751650887147,6.91118395,146.82,146.78,13.72371395]
[1751650887641,6.91118395,146.81,146.78,6.81253]
[1751650889742,6.91118395,146.81,146.75,23.84999493]
[1751650889943,6.91118395,146.81,146.77,6.91118395]
[1751650890142,6.91118395,146.81,146.78,6.91118395]
[1751650890729,6.91118395,146.82,146.78,6.91118395]
[1751650891737,6.91118395,146.82,146.78,13.72363914]
[1751650892838,6.91118395,146.82,146.78,6.91118395]
[1751650894551,6.91118395,146.82,146.78,13.7236506]
[1751650896316,6.81075795,146.83,146.78,13.7236506]
[1751650896516,6.91118395,146.82,146.78,13.7236506]
[1751650901755,13.72238536,146.82,146.72,8.55838395]
[1751650902059,6.91118395,146.79,146.75,6.91118395]
[1751650902230,6.91118395,146.79,146.76,6.81384573]
[1751650902740,44.64964886,146.81,146.76,13.72502968]
[1751650902940,26.0,146.81,146.76,13.72502968]
[1751650903147,32.91118395,146.81,146.77,6.91118395]
[1751650906352,39.72284628,146.81,146.77,6.91118395]
[1751650906540,39.72284628,146.81,146.75,6.81414403]
[1751650906541,6.91118395,146.79,146.75,6.81414403]
[1751650906742,6.91118395,146.78,146.75,6.81414403]
[1751650907847,6.91118395,146.79,146.75,13.72532798]
[1751650910561,6.91118395,146.78,146.73,6.81523887]
[1751650910752,6.91118395,146.77,146.73,13.72642282]
[1751650911062,6.91118395,146.78,146.75,6.81431005]
[1751650911750,6.81215915,146.8,146.75,6.81431005]
[1751650911953,6.81215915,146.8,146.74,6.8145752]
[1751650911954,6.91118395,146.77,146.74,6.8145752]
[1751650912263,6.91118395,146.76,146.73,6.81502519]
[1751650914568,6.91118395,146.79,146.74,6.91118395]
[1751650914868,6.91118395,146.77,146.73,6.81502519]
[1751650915077,26.0,146.78,146.73,6.81502519]
[1751650915078,6.91118395,146.76,146.73,6.81502519]
[1751650916961,6.91118395,146.76,146.72,6.91118395]
[1751650919581,6.91118395,146.76,146.73,6.81523887]
[1751650920979,6.91118395,146.76,146.72,6.91118395]
[1751650922168,6.91118395,146.75,146.71,6.91118395]
[1751650922368,6.91118395,146.75,146.7,6.81663258]
[1751650922369,6.91118395,146.76,146.72,6.91118395]
[1751650922579,18.64964886,146.77,146.73,6.91118395]
[1751650922764,18.64964886,146.77,146.7,23.85821403]
[1751650923084,32.91118395,146.78,146.74,6.91118395]
[1751650923285,26.0,146.78,146.75,6.91118395]
[1751650923524,26.0,146.78,146.76,6.91118395]
[1751650925093,26.0,146.78,146.76,6.81362223]
[1751650925261,26.0,146.78,146.74,6.81477443]
[1751650925262,6.91118395,146.77,146.74,6.81477443]
[1751650926012,6.91118395,146.75,146.73,6.81501991]
[1751650926782,122.61295327,146.78,146.73,6.81501991]
[1751650927091,6.91118395,146.75,146.72,6.81570338]
[1751650930010,6.91118395,146.76,146.72,6.81570338]
[1751650930676,6.91118395,146.76,146.7,6.81663258]
[1751650930876,6.91118395,146.76,146.71,6.91118395]
[1751650933108,6.91118395,146.76,146.72,13.72647321]
[1751650933417,6.91118395,146.75,146.72,6.81528926]
[1751650935809,6.91118395,146.76,146.72,13.72647321]
[1751650937288,115.8,146.78,146.73,6.91118395]
[1751650937614,122.71118395,146.78,146.74,6.91118395]
[1751650938211,115.8,146.78,146.74,6.91118395]
[1751650938391,26.0,146.78,146.76,6.91118395]
[1751650939114,26.0,146.78,146.77,6.81338148]
[1751650940211,26.0,146.78,146.76,6.81363482]
[1751650940909,32.91118395,146.78,146.76,6.81363482]
[1751650941106,32.91118395,146.78,146.75,6.81431005]
[1751650942813,26.0,146.78,146.75,6.91118395]
[1751650944706,26.0,146.78,146.74,6.81432723]
[1751650944896,26.0,146.78,146.75,6.91118395]
[1751650945100,26.0,146.78,146.74,6.81432723]
[1751650945310,26.0,146.78,146.75,6.91118395]
[1751650945702,26.0,146.78,146.74,13.72551118]
[1751650946723,39.72425675,146.78,146.72,6.81570338]
[1751650946890,32.91118395,146.78,146.72,6.81570338]
[1751650947213,32.91118395,146.78,146.74,6.91118395]
[1751650948588,26.0,146.78,146.74,6.91118395]
[1751650948789,26.0,146.78,146.72,23.85496183]
[1751650948790,26.0,146.78,146.75,13.725494]
[1751650949000,26.0,146.8,146.77,6.91118395]
[1751650950509,89.8,146.81,146.78,6.91118395]
[1751650950812,33.68,146.82,146.79,6.91118395]
[1751650951013,5.10166328,146.81,146.78,6.91118395]
[1751650952096,5.10166328,146.81,146.78,13.7237332]
[1751650952797,5.10166328,146.81,146.78,6.81254925]
[1751650952999,5.10166328,146.81,146.78,13.7237332]
[1751650953913,11.91322398,146.81,146.76,13.7249108]
[1751650954218,11.91322398,146.81,146.75,6.81421043]
[1751650954219,6.91118395,146.78,146.75,6.81421043]
[1751650955092,6.91118395,146.78,146.74,6.91118395]
[1751650955305,6.91118395,146.78,146.73,6.91118395]
[1751650955498,6.91118395,146.78,146.74,6.91118395]
[1751650957215,6.91118395,146.78,146.74,13.72557114]
[1751650957423,12.01158744,146.78,146.74,13.72557114]
[1751650961422,6.91118395,146.78,146.74,13.72557114]
[1751650962120,6.91118395,146.78,146.74,6.91118395]
[1751650964240,6.91118395,146.78,146.75,6.81431005]
[1751650969815,6.91118395,146.77,146.74,6.81454595]
[1751650970939,6.91118395,146.76,146.72,13.72688733]
[1751650971936,6.91118395,146.74,146.72,6.81570338]
[1751650972113,6.91118395,146.75,146.72,6.81570338]
[1751650973014,6.91118395,146.75,146.71,6.81616795]
[1751650973442,6.91118395,146.74,146.71,6.81616795]
[1751650974243,6.91118395,146.75,146.71,6.81616795]
[1751650975543,5.10270274,146.76,146.71,6.81616795]
[1751650975733,6.91118395,146.75,146.71,13.7273519]
[1751650978342,6.91118395,146.74,146.71,13.7273519]
[1751650979943,5.10175732,146.76,146.71,13.7273519]
[1751650980120,32.91118395,146.77,146.73,6.91118395]
[1751650981445,32.91118395,146.77,146.74,6.81477443]
[1751650981627,44.64964886,146.74,146.69,0.2]
[1751650981833,6.91118395,146.71,146.69,0.2]
[1751650983242,6.91118395,146.71,146.69,7.01704308]
[1751650983575,6.91118395,146.73,146.69,13.92822703]
[1751650984047,6.91118395,146.72,146.69,7.01704308]
[1751650984422,6.91118395,146.71,146.69,0.2]
[1751650985041,6.91118395,146.72,146.69,0.2]
[1751650985947,122.61491539,146.74,146.69,0.2]
[1751650985948,6.91118395,146.7,146.69,0.2]
[1751650987656,6.55151813,146.7,146.69,0.2]
[1751650998385,6.91118395,146.7,146.69,0.2]
[1751651000376,6.81584315,146.72,146.69,0.2]
[1751651000674,6.91118395,146.7,146.69,0.2]
[1751651001372,6.81584315,146.72,146.69,0.2]
[1751651001576,6.91118395,146.7,146.69,0.2]
[1751651002076,6.81584315,146.72,146.69,0.2]
[1751651002253,6.91118395,146.71,146.69,0.2]
[1751651006673,6.91118395,146.72,146.69,7.01707505]
[1751651011456,32.81501613,146.74,146.69,7.01707505]
[1751651011655,6.91118395,146.72,146.69,7.01707505]
[1751651015678,32.81501613,146.74,146.69,7.01707505]
[1751651015888,6.91118395,146.72,146.69,7.01707505]
[1751651017794,32.81501613,146.74,146.69,7.01707505]
[1751651017984,4.376839,146.72,146.69,7.01707505]
[1751651020596,5.10086719,146.73,146.69,7.01707505]
[1751651020803,5.10086719,146.73,146.69,11.39391405]
[1751651021001,9.47770619,146.73,146.69,11.39391405]
[1751651022572,4.376839,146.72,146.69,7.01707505]
[1751651023673,5.10086719,146.73,146.69,7.01707505]
[1751651023874,4.376839,146.72,146.69,7.01707505]
[1751651024284,9.47770619,146.73,146.69,11.39391405]
[1751651025997,4.376839,146.72,146.69,7.01707505]
[1751651027804,4.376839,146.72,146.69,0.2]
[1751651028902,30.376839,146.72,146.69,0.2]
[1751651029496,37.19255146,146.72,146.69,0.2]
[1751651032598,9.48625438,146.71,146.69,0.2]
[1751651032782,4.376839,146.7,146.69,0.2]
[1751651035083,9.48662955,146.71,146.69,0.2]
[1751651035287,4.376839,146.71,146.69,0.2]
[1751651037403,9.48705436,146.71,146.69,0.2]
[1751651041173,4.376839,146.71,146.69,0.2]
[1751651042489,37.19259413,146.72,146.69,0.2]
[1751651042685,5.11066687,146.71,146.69,0.2]
[1751651042885,37.19259413,146.72,146.69,0.2]
[1751651043178,5.11066687,146.71,146.69,0.2]
[1751651043380,37.19259413,146.72,146.69,0.2]
[1751651043620,5.11066615,146.71,146.69,0.2]
[1751651043903,32.81575513,146.72,146.69,0.2]
[1751651044087,5.11066615,146.71,146.69,0.2]
[1751651044289,37.19259413,146.72,146.69,0.2]
[1751651044498,5.11083644,146.71,146.69,0.2]
[1751651044794,37.19259413,146.72,146.69,0.2]
[1751651044996,5.11083644,146.71,146.69,0.2]
[1751651045197,37.19259413,146.72,146.69,0.2]
[1751651045390,5.1107771,146.71,146.69,0.2]
[1751651045589,37.19259413,146.72,146.69,0.2]
[1751651045892,9.48785087,146.71,146.69,0.2]
[1751651046093,4.376839,146.71,146.69,0.2]
[1751651047183,9.48781807,146.7,146.69,0.2]
[1751651047384,4.376839,146.7,146.69,0.2]
[1751651047584,9.48781807,146.7,146.69,0.2]
[1751651047811,4.376839,146.7,146.69,0.2]
[1751651047984,9.48781807,146.7,146.69,0.2]
[1751651048184,4.376839,146.7,146.69,0.2]
[1751651048392,9.48781807,146.7,146.69,0.2]
[1751651049819,16.30445065,146.7,146.69,0.2]
[1751651050588,34.95409951,146.7,146.69,0.2]
[1751651051793,60.95409951,146.7,146.69,0.2]
[1751651055221,34.95409951,146.7,146.69,0.2]
[1751651056422,41.33057525,146.7,146.69,0.2]
[1751651056599,36.95373625,146.7,146.69,0.2]
[1751651056796,41.33057525,146.7,146.69,0.2]
[1751651056999,5.11097907,146.7,146.69,4.576839]
[1751651057525,5.11097907,146.72,146.69,11.39383281]
[1751651057705,5.11097907,146.71,146.7,4.376839]
[1751651057909,5.11097907,146.73,146.7,4.376839]
[1751651058106,5.11097907,146.74,146.71,4.376839]
[1751651058323,5.11097907,146.73,146.71,4.376839]
[1751651058654,31.11097907,146.74,146.71,4.376839]
[1751651058802,5.11097907,146.73,146.71,4.376839]
[1751651059001,5.11097907,146.74,146.71,4.376839]
[1751651059304,5.11097907,146.73,146.71,4.376839]
[1751651059820,5.11097907,146.73,146.71,6.83652459]
[1751651060323,5.11097907,146.73,146.7,6.83652459]
[1751651060705,5.11097907,146.73,146.69,7.03652459]
[1751651061427,18.76295129,146.73,146.69,7.03652459]
[1751651061626,13.65197222,146.73,146.69,7.03652459]
[1751651062440,6.81544763,146.73,146.69,7.03652459]
[1751651062639,18.75230865,146.73,146.69,7.03652459]
[1751651062822,13.65197222,146.73,146.69,7.03652459]
[1751651063023,5.10044005,146.72,146.69,7.03652459]
[1751651064942,18.75270347,146.72,146.69,0.2]
[1751651065121,5.10044005,146.71,146.69,0.2]
[1751651065945,18.75326333,146.71,146.69,0.2]
[1751651066182,5.10044005,146.7,146.69,0.2]
[1751651066450,13.65282328,146.71,146.69,0.2]
[1751651066752,5.10157618,146.7,146.69,0.2]
[1751651067454,5.10157618,146.72,146.69,7.03652459]
[1751651067628,5.10157618,146.72,146.69,13.85358588]
[1751651072456,11.93810077,146.72,146.69,7.01706129]
[1751651073233,11.93810077,146.72,146.69,0.2]
[1751651073557,5.10157618,146.71,146.69,0.2]
[1751651075259,6.83652459,146.7,146.69,0.2]
[1751651075438,11.93810077,146.7,146.69,0.2]
[1751651076563,18.75473335,146.7,146.69,0.2]
[1751651076762,37.40438221,146.7,146.69,0.2]
[1751651079465,44.01838221,146.7,146.69,0.2]
[1751651082333,108.44964886,146.69,146.68,1e-08]